bitfinex/quotes_BTCUSD_20250917
["timestamp","ask_amount","ask_price","bid_price","bid_amount"]
[1758151237196,1.76180595,116760.0,116750.0,0.00100001]
[1758151237435,1.81180595,116760.0,116750.0,0.00100001]
[1758151238301,2.1398688,116760.0,116750.0,0.00100001]
[1758151239301,1.81180595,116760.0,116750.0,0.00100001]
[1758151239727,1.6908688,116760.0,116750.0,0.00100001]
[1758151240176,1.77613847,116760.0,116750.0,0.00100001]
[1758151240404,1.77613847,116760.0,116750.0,1e-08]
[1758151241817,1.79845654,116760.0,116750.0,1e-08]
[1758151243154,1.79945654,116760.0,116750.0,1e-08]
[1758151243360,1.82519035,116760.0,116750.0,1e-08]
[1758151255362,1.54699035,116760.0,116750.0,1e-08]
[1758151255541,1.82487035,116760.0,116750.0,1e-08]
[1758151257644,1.84090586,116760.0,116750.0,1e-08]
[1758151258066,1.84691923,116760.0,116750.0,1e-08]
[1758151264994,1.84693607,116760.0,116750.0,1e-08]
[1758151268812,1.19081037,116760.0,116750.0,1e-08]
[1758151269035,1.84693699,116760.0,116750.0,1e-08]
[1758151271167,1.84694232,116760.0,116750.0,1e-08]
[1758151272620,2.83113087,116760.0,116750.0,1e-08]
[1758151273069,1.84694232,116760.0,116750.0,1e-08]
[1758151273283,1.19081662,116760.0,116750.0,1e-08]
[1758151273582,1.84694232,116760.0,116750.0,1e-08]
[1758151273808,0.6414581,116750.0,116740.0,1e-08]
[1758151274023,1.91457314,116750.0,116740.0,1e-08]
[1758151274266,1.93258841,116750.0,116740.0,1e-08]
[1758151274480,0.61132088,116740.0,116730.0,1e-08]
[1758151274694,1.68671815,116740.0,116730.0,1e-08]
[1758151274913,1.77404782,116740.0,116730.0,1e-08]
[1758151275050,2.22304782,116740.0,116730.0,1e-08]
[1758151275255,2.24878761,116740.0,116730.0,1e-08]
[1758151275739,1.59266191,116740.0,116730.0,1e-08]
[1758151275947,2.24878761,116740.0,116730.0,1e-08]
[1758151276154,1.97122761,116740.0,116730.0,1e-08]
[1758151276354,1.54266191,116740.0,116730.0,1e-08]
[1758151276560,1.59266191,116740.0,116730.0,1e-08]
[1758151276734,2.25078761,116740.0,116730.0,1e-08]
[1758151279905,2.23328361,116740.0,116730.0,1e-08]
[1758151280150,0.95761316,116730.0,116720.0,1e-08]
[1758151280364,1.43196248,116730.0,116720.0,1e-08]
[1758151280602,1.43392248,116730.0,116720.0,1e-08]
[1758151280803,1.43402248,116730.0,116720.0,1e-08]
[1758151281351,1.43402248,116730.0,116720.0,0.00014077]
[1758151282816,1.43502248,116730.0,116720.0,0.00014077]
[1758151283911,1.46076228,116730.0,116720.0,0.00014077]
[1758151288660,1.80076228,116730.0,116720.0,0.00014077]
[1758151291075,1.82282434,116730.0,116720.0,0.00014077]
[1758151291237,1.80076228,116730.0,116720.0,0.00014077]
[1758151291849,1.8013124,116730.0,116720.0,0.00014077]
[1758151292133,1.52796186,116730.0,116720.0,0.00014077]
[1758151294636,1.52796186,116730.0,116720.0,1e-08]
[1758151296782,1.16666295,116730.0,116720.0,1e-08]
[1758151297000,1.54998823,116730.0,116720.0,1e-08]
[1758151302671,1.62998823,116730.0,116720.0,1e-08]
[1758151303247,1.72254823,116730.0,116720.0,1e-08]
[1758151305209,1.70652905,116730.0,116720.0,1e-08]
[1758151305424,1.72256071,116730.0,116720.0,1e-08]
[1758151308221,1.33923543,116730.0,116720.0,1e-08]
[1758151308435,1.72256071,116730.0,116720.0,1e-08]
[1758151312357,0.64150213,116720.0,116710.0,1e-08]
[1758151312575,2.28878616,116720.0,116710.0,1e-08]
[1758151312782,1.14094032,116720.0,116710.0,1e-08]
[1758151313000,1.16668299,116720.0,116710.0,1e-08]
[1758151313845,1.16768299,116720.0,116710.0,1e-08]
[1758151314053,1.23081782,116720.0,116710.0,1e-08]
[1758151315286,0.17136492,116710.0,116700.0,1e-08]
[1758151315510,1.06133501,116710.0,116700.0,0.00014115]
[1758151315636,1.06346501,116710.0,116700.0,1e-08]
[1758151315868,1.14095501,116710.0,116700.0,1e-08]
[1758151316066,2.31667473,116710.0,116700.0,1e-08]
[1758151316271,2.31677473,116710.0,116700.0,1e-08]
[1758151316674,1.16679889,116710.0,116700.0,1e-08]
[1758151317378,0.5613796,116700.0,116690.0,0.13282818]
[1758151317589,1.12379779,116700.0,116690.0,0.13287533]
[1758151317797,2.30339363,116700.0,116690.0,0.13287533]
[1758151318001,2.38354553,116700.0,116690.0,0.13287533]
[1758151318210,0.17139429,116690.0,116680.0,0.13723506]
[1758151318421,1.01296118,116690.0,116680.0,0.13723506]
[1758151318631,0.68488616,116680.0,116670.0,0.14244194]
[1758151318852,0.96208616,116680.0,116670.0,0.14244194]
[1758151319070,0.96208616,116680.0,116670.0,0.14253194]
[1758151319260,0.98917719,116680.0,116670.0,0.14244194]
[1758151319502,0.65351045,116680.0,116670.0,0.14244194]
[1758151319713,1.1251554,116680.0,116670.0,0.14244194]
[1758151319928,1.1251554,116680.0,116670.0,0.14344194]
[1758151320354,0.71976909,116680.0,116670.0,0.14344194]
[1758151320565,0.79808437,116680.0,116670.0,0.14353194]
[1758151320773,0.61413055,116680.0,116670.0,0.14353194]
[1758151320999,1.06686258,116680.0,116670.0,0.14353194]
[1758151321205,1.09675258,116680.0,116670.0,0.14344194]
[1758151321412,0.3862273,116680.0,116670.0,0.14344194]
[1758151321625,0.86886088,116680.0,116670.0,0.15136194]
[1758151321837,1.3213861,116680.0,116670.0,0.14353194]
[1758151322044,1.30218616,116680.0,116670.0,0.14353194]
[1758151322499,1.30426616,116680.0,116670.0,0.14353194]
[1758151322713,1.39272583,116680.0,116670.0,0.14353194]
[1758151322947,1.41720583,116680.0,116670.0,0.14344194]
[1758151324489,1.88520669,116680.0,116670.0,0.14344194]
[1758151324746,1.09577865,116680.0,116670.0,0.14359194]
[1758151324981,1.09577865,116680.0,116670.0,0.1685043]
[1758151324982,1.39383426,116680.0,116670.0,0.1685043]
[1758151325787,1.01050898,116680.0,116670.0,0.1685043]
[1758151326022,1.39383426,116680.0,116670.0,0.1685043]
[1758151326294,1.09577865,116680.0,116670.0,0.1685043]
[1758151326577,1.47910393,116680.0,116670.0,0.1685043]
[1758151326903,0.27150898,116680.0,116670.0,0.25377397]
[1758151327125,0.22150898,116680.0,116670.0,0.40805528]
[1758151327584,0.0501,116680.0,116670.0,0.68545528]
[1758151327810,0.0001,116680.0,116670.0,0.68545528]
[1758151328027,0.0501,116680.0,116670.0,0.68545528]
[1758151328469,0.22150898,116680.0,116670.0,0.68545528]
[1758151328701,0.0501,116680.0,116670.0,0.68545528]
[1758151329614,0.0001,116680.0,116670.0,1.06878056]
[1758151329856,0.0001,116680.0,116670.0,0.68545528]
[1758151330182,0.0001,116680.0,116670.0,1.43922056]
[1758151330610,0.0001,116680.0,116670.0,1.05589528]
[1758151330834,0.0001,116680.0,116670.0,1.43922056]
[1758151331220,0.0001,116680.0,116670.0,1.43822056]
[1758151331661,0.0001,116680.0,116670.0,1.83822056]
[1758151331862,0.0001,116680.0,116670.0,1.86395817]
[1758151333792,0.0001,116680.0,116670.0,2.20395817]
[1758151337187,0.0001,116680.0,116670.0,2.20495817]
[1758151338451,0.0001,116680.0,116670.0,1.92755817]
[1758151338681,0.0001,116680.0,116670.0,2.20475817]
[1758151340495,0.0001,116680.0,116670.0,1.82143289]
[1758151340709,0.0001,116680.0,116670.0,2.20475817]
[1758151344526,0.00022028,116690.0,116680.0,0.17140898]
[1758151344725,0.00022028,116690.0,116680.0,0.73256393]
[1758151344941,0.00022028,116690.0,116680.0,0.74039393]
[1758151345191,0.00022028,116690.0,116680.0,0.74048393]
[1758151345404,0.00022028,116690.0,116680.0,1.14048393]
[1758151346649,0.00022028,116690.0,116680.0,0.75715865]
[1758151346825,0.00022028,116690.0,116680.0,1.14048393]
[1758151351380,0.00022028,116690.0,116680.0,0.75715865]
[1758151351597,0.00022028,116690.0,116680.0,1.14048393]
[1758151351774,0.00022028,116690.0,116680.0,1.14040871]
[1758151352178,0.00022028,116690.0,116680.0,1.08543497]
[1758151353399,0.00022028,116690.0,116680.0,1.09393497]
[1758151353856,0.00022028,116690.0,116680.0,1.11966867]
[1758151355142,0.00022028,116690.0,116680.0,1.45966867]
[1758151355830,0.00012028,116690.0,116680.0,1.45966867]
[1758151356488,0.00012028,116690.0,116680.0,1.45116867]
[1758151356971,0.00012028,116690.0,116680.0,1.45966867]
[1758151357461,0.00022028,116690.0,116680.0,1.45966867]
[1758151358504,0.00012028,116690.0,116680.0,1.45966867]
[1758151359587,0.00012028,116690.0,116680.0,1.46066867]
[1758151364590,0.00012028,116690.0,116680.0,1.80652671]
[1758151365025,0.0001,116710.0,116700.0,0.5113796]
[1758151365268,0.0001,116710.0,116700.0,1.53016191]
[1758151365469,0.0001,116710.0,116700.0,1.53808191]
[1758151365685,0.0001,116720.0,116710.0,0.17136492]
[1758151365918,0.00022079,116720.0,116710.0,0.72730459]
[1758151366144,0.00022079,116720.0,116710.0,1.05567091]
[1758151366583,0.00022079,116720.0,116710.0,1.79567091]
[1758151367464,0.00022079,116720.0,116710.0,1.82139859]
[1758151367913,0.00122079,116720.0,116710.0,1.82139859]
[1758151368598,0.00112079,116720.0,116710.0,1.82139859]
[1758151368845,0.00112079,116720.0,116710.0,2.09831859]
[1758151370647,0.00112079,116720.0,116710.0,1.79567091]
[1758151370834,0.32939711,116720.0,116710.0,1.40427459]
[1758151371057,0.00112079,116720.0,116710.0,1.40427459]
[1758151371270,0.00112079,116720.0,116710.0,1.73255091]
[1758151371487,0.00122079,116720.0,116710.0,1.73255091]
[1758151372676,0.32949711,116720.0,116710.0,1.40427459]
[1758151374374,0.00122079,116720.0,116710.0,1.40427459]
[1758151374557,0.32949711,116720.0,116710.0,1.40427459]
[1758151375231,0.00122079,116720.0,116710.0,1.40427459]
[1758151375451,0.32949711,116720.0,116710.0,1.40427459]
[1758151380180,0.00122079,116720.0,116710.0,1.40427459]
[1758151380450,0.32949711,116720.0,116710.0,1.40427459]
[1758151381513,0.00122079,116720.0,116710.0,1.40427459]
[1758151381706,0.32949711,116720.0,116710.0,1.40427459]
[1758151382613,0.32949711,116720.0,116710.0,1.40415459]
[1758151383151,0.32949711,116720.0,116710.0,1.12739459]
[1758151383376,0.32949711,116720.0,116710.0,1.40415459]
[1758151384107,0.00122079,116720.0,116710.0,1.40415459]
[1758151384317,0.32949711,116720.0,116710.0,1.40415459]
[1758151386255,0.32949711,116720.0,116710.0,1.03387459]
[1758151387064,0.00122079,116720.0,116710.0,1.03387459]
[1758151387274,0.32949711,116720.0,116710.0,1.03387459]
[1758151388085,0.32949711,116720.0,116710.0,0.75711459]
[1758151388311,0.32949711,116720.0,116710.0,1.03379459]
[1758151390984,0.00122079,116720.0,116710.0,1.36207091]
[1758151392156,0.00122079,116720.0,116710.0,1.03379459]
[1758151392358,0.00122079,116720.0,116710.0,1.36207091]
[1758151395955,0.00122079,116720.0,116710.0,1.73231091]
[1758151396173,0.00122079,116720.0,116710.0,1.40403459]
[1758151396380,0.00122079,116720.0,116710.0,1.73231091]
[1758151396607,0.00022079,116720.0,116710.0,1.73231091]
[1758151397320,0.00022079,116720.0,116710.0,1.40403459]
[1758151397528,0.00022079,116720.0,116710.0,1.73231091]
[1758151402995,0.00022079,116720.0,116710.0,1.40403459]
[1758151403189,0.00022079,116720.0,116710.0,1.73231091]
[1758151404306,0.00022079,116720.0,116710.0,1.75803837]
[1758151404752,0.00022079,116720.0,116710.0,1.42976205]
[1758151404982,0.00022079,116720.0,116710.0,1.48135837]
[1758151405421,0.00022079,116720.0,116710.0,1.75779837]
[1758151406058,0.00022079,116720.0,116710.0,2.09779837]
[1758151407027,0.00022079,116720.0,116710.0,2.45622659]
[1758151407463,0.0001,116730.0,116720.0,0.17135023]
[1758151407676,0.0001,116730.0,116720.0,1.19740254]
[1758151407883,0.0001,116730.0,116720.0,1.26210244]
[1758151408242,0.0001,116730.0,116720.0,1.66210244]
[1758151409185,0.0001,116730.0,116720.0,1.66220244]
[1758151409579,0.0001,116730.0,116720.0,1.66420244]
[1758151410507,0.0001,116740.0,116730.0,0.51133556]
[1758151410719,0.0001,116750.0,116740.0,0.17132088]
[1758151410956,0.0001,116750.0,116740.0,0.96166687]
[1758151411362,0.0001,116750.0,116740.0,1.37016687]
[1758151411803,0.0001,116750.0,116740.0,1.38699452]
[1758151412015,0.0001,116750.0,116740.0,1.05911225]
[1758151412234,0.0001,116750.0,116740.0,1.44190682]
[1758151412450,0.0001,116750.0,116740.0,1.45040682]
[1758151413697,0.0001,116750.0,116740.0,1.45050682]
[1758151415145,0.0001,116750.0,116740.0,1.80753184]
[1758151416120,0.0001,116750.0,116740.0,1.80853184]
[1758151421411,0.0001,116750.0,116740.0,1.42573727]
[1758151421623,0.0001,116750.0,116740.0,1.80853184]
[1758151422355,0.0001,116750.0,116740.0,1.14937727]
[1758151422619,0.0001,116750.0,116740.0,1.42553727]
[1758151423365,0.0001,116750.0,116740.0,1.42453727]
[1758151423670,0.0001,116750.0,116740.0,1.42553727]
[1758151423882,0.0001,116750.0,116740.0,1.42453727]
[1758151424092,0.0001,116750.0,116740.0,1.80733184]
[1758151424937,0.0001,116750.0,116740.0,1.80833184]
[1758151426577,0.0001,116750.0,116740.0,1.42553727]
[1758151427030,0.0001,116750.0,116740.0,1.80833184]
[1758151428205,0.0001,116750.0,116740.0,1.42553727]
[1758151428407,0.0001,116750.0,116740.0,1.80833184]
[1758151428844,0.0001,116750.0,116740.0,1.42553727]
[1758151429046,0.0001,116750.0,116740.0,1.80833184]
[1758151430601,0.0001,116750.0,116740.0,1.42553727]
[1758151430804,0.0001,116750.0,116740.0,1.80833184]
[1758151431208,0.0001,116750.0,116740.0,1.53217184]
[1758151431434,0.0001,116750.0,116740.0,1.80817184]
[1758151431895,0.0001,116750.0,116740.0,1.53217184]
[1758151432084,0.0001,116750.0,116740.0,1.42537727]
[1758151434060,0.0001,116750.0,116740.0,1.79549727]
[1758151437289,0.0001,116750.0,116740.0,1.51949727]
[1758151437492,0.0001,116750.0,116740.0,1.79541727]
[1758151439326,0.0001,116750.0,116740.0,1.79441727]
[1758151440828,0.0001,116750.0,116740.0,1.51849727]
[1758151441036,0.38289457,116750.0,116740.0,1.79433727]
[1758151441423,0.0001,116750.0,116740.0,1.79433727]
[1758151443385,0.0001,116750.0,116740.0,2.17713184]
[1758151446266,0.0001,116750.0,116740.0,2.16863184]
[1758151446473,0.0001,116750.0,116740.0,2.16963184]
[1758151446681,0.0001,116760.0,116750.0,0.5113062]
[1758151446897,0.00024105,116760.0,116750.0,1.25517044]
[1758151447145,0.00024105,116760.0,116750.0,1.26309044]
[1758151447568,0.00024105,116760.0,116750.0,1.66309044]
[1758151448207,0.00024105,116760.0,116750.0,1.66319044]
[1758151448827,0.00024105,116760.0,116750.0,1.28039587]
[1758151449032,0.00024105,116760.0,116750.0,1.66319044]
[1758151449504,0.00024105,116760.0,116750.0,1.67169044]
[1758151450411,0.00024105,116760.0,116750.0,1.69740634]
[1758151450638,0.00014105,116760.0,116750.0,1.69740634]
[1758151452452,0.00014105,116760.0,116750.0,1.76254595]
[1758151453247,0.00014105,116760.0,116750.0,1.76454595]
[1758151453889,0.00014105,116760.0,116750.0,1.76901654]
[1758151457041,0.00014105,116760.0,116750.0,1.38622197]
[1758151457175,0.00014105,116760.0,116750.0,1.76901654]
[1758151459882,0.00014105,116760.0,116750.0,1.76051654]
[1758151464160,0.00014105,116760.0,116750.0,2.52610568]
[1758151464783,0.00014105,116760.0,116750.0,2.53460568]
[1758151470835,0.00014105,116760.0,116750.0,2.52610568]
[1758151473875,0.00014105,116760.0,116750.0,2.52560396]
[1758151474919,0.00014105,116760.0,116750.0,2.24980396]
[1758151475120,0.00014105,116760.0,116750.0,1.7683693]
[1758151475322,0.00014105,116760.0,116750.0,1.4930493]
[1758151475761,0.00014105,116760.0,116750.0,1.7683293]
[1758151476387,0.00014105,116760.0,116750.0,1.71353703]
[1758151476589,0.00014105,116760.0,116750.0,1.71153703]
[1758151476797,0.00014105,116760.0,116750.0,1.71353703]
[1758151477005,0.00014105,116760.0,116750.0,1.43625703]
[1758151477214,0.00014105,116760.0,116750.0,1.71153703]
[1758151477561,0.00014105,116760.0,116750.0,1.71253703]
[1758151477782,0.00014105,116760.0,116750.0,1.71153703]
[1758151478182,0.00014105,116760.0,116750.0,2.03937209]
[1758151478629,0.00014105,116760.0,116750.0,1.76609209]
[1758151478842,0.00014105,116760.0,116750.0,2.04133209]
[1758151479895,0.00014105,116760.0,116750.0,1.76409209]
[1758151480111,0.00014105,116760.0,116750.0,2.03933209]
[1758151480321,0.00014105,116760.0,116750.0,2.04033209]
[1758151484346,0.00014105,116760.0,116750.0,2.13281209]
[1758151493822,0.00014105,116760.0,116750.0,2.50285209]
[1758151495005,0.00014105,116760.0,116750.0,1.84718197]
[1758151495418,0.00014105,116760.0,116750.0,2.17501703]
[1758151495644,0.00014105,116760.0,116750.0,1.84690197]
[1758151496080,0.00014105,116760.0,116750.0,2.17473703]
[1758151496317,0.00014105,116760.0,116750.0,2.17026644]
[1758151496767,0.00014105,116760.0,116750.0,1.84243138]
[1758151496975,0.00014105,116760.0,116750.0,2.17026644]
[1758151501703,0.00014105,116760.0,116750.0,2.16176644]
[1758151505736,0.00014105,116760.0,116750.0,2.4896015]
[1758151506781,0.00014105,116760.0,116750.0,2.16176644]
[1758151507002,0.00014105,116760.0,116750.0,2.4981015]
[1758151507236,0.00014105,116760.0,116750.0,2.17026644]
[1758151507814,0.00014105,116760.0,116750.0,2.4981015]
[1758151508233,0.00014105,116760.0,116750.0,2.17026644]
[1758151508820,0.00014105,116760.0,116750.0,2.17022644]
[1758151510072,0.00014105,116760.0,116750.0,2.4980615]
[1758151516358,0.00014105,116760.0,116750.0,1.84239138]
[1758151516574,0.00014105,116760.0,116750.0,2.4980615]
[1758151519392,0.0001,116780.0,116770.0,0.81127686]
[1758151519610,0.0001,116790.0,116780.0,0.1712622]
[1758151519872,0.00057008,116790.0,116780.0,0.96027693]
[1758151520052,0.00057008,116790.0,116780.0,1.39381756]
[1758151521226,0.00057008,116790.0,116780.0,1.39391756]
[1758151521451,0.00257008,116790.0,116780.0,1.39391756]
[1758151521666,0.00247008,116790.0,116780.0,2.06175262]
[1758151521885,0.00247008,116790.0,116780.0,1.73391756]
[1758151522992,0.00247008,116790.0,116780.0,1.4060825]
[1758151523208,0.00247008,116790.0,116780.0,1.73391756]
[1758151524753,0.00247008,116790.0,116780.0,1.73387756]
[1758151524922,0.00247008,116790.0,116780.0,1.79794664]
[1758151525558,0.00247008,116790.0,116780.0,1.47011158]
[1758151525755,0.00247008,116790.0,116780.0,1.79794664]
[1758151530626,0.00247008,116790.0,116780.0,2.16790664]
[1758151533066,0.00247008,116790.0,116780.0,1.84007158]
[1758151533286,0.00247008,116790.0,116780.0,2.16790664]
[1758151534000,0.00247008,116790.0,116780.0,2.53689694]
[1758151534203,0.00247008,116790.0,116780.0,1.56527158]
[1758151534412,0.00257008,116790.0,116780.0,1.49212158]
[1758151534617,0.00257008,116790.0,116780.0,1.84830426]
[1758151535842,0.00257008,116790.0,116780.0,1.49995158]
[1758151536109,0.00257008,116790.0,116780.0,1.96456059]
[1758151542709,0.00257008,116790.0,116780.0,1.49995158]
[1758151542915,0.00257008,116790.0,116780.0,1.96456059]
[1758151547673,0.00057008,116790.0,116780.0,1.96456059]
[1758151549084,0.00057008,116790.0,116780.0,1.96656059]
[1758151560696,0.00057008,116790.0,116780.0,1.95806059]
[1758151565773,0.00057008,116790.0,116780.0,1.96656059]
[1758151567800,0.00057008,116790.0,116780.0,1.50195158]
[1758151568236,0.00057008,116790.0,116780.0,1.96656059]
[1758151569608,0.00057008,116790.0,116780.0,1.50195158]
[1758151569813,0.00057008,116790.0,116780.0,1.96656059]
[1758151574498,0.00057008,116790.0,116780.0,1.04817938]
[1758151574710,0.71432662,116790.0,116780.0,0.77014967]
[1758151574923,0.71432662,116790.0,116780.0,0.09586967]
[1758151575163,0.71432662,116790.0,116780.0,0.37014967]
[1758151575372,0.76432662,116790.0,116780.0,0.37014967]
[1758151575587,0.76432662,116790.0,116780.0,0.36814967]
[1758151575794,0.76432662,116790.0,116780.0,0.37014967]
[1758151576004,0.76432662,116790.0,116780.0,0.36164967]
[1758151577311,0.76432662,116790.0,116780.0,0.08536967]
[1758151577521,0.76632662,116790.0,116780.0,0.35964967]
[1758151577862,0.76432662,116790.0,116780.0,0.35954967]
[1758151578068,0.76432662,116790.0,116780.0,0.08526967]
[1758151578274,0.76432662,116790.0,116780.0,0.35954967]
[1758151579267,0.27127686,116770.0,116760.0,0.0086]
[1758151579467,0.73588587,116770.0,116760.0,0.35964967]
[1758151579668,0.76378587,116770.0,116760.0,0.35964967]
[1758151580106,0.76388587,116770.0,116760.0,0.35964967]
[1758151580802,0.76588587,116770.0,116760.0,0.5309412]
[1758151581207,0.30127686,116770.0,116760.0,0.35964967]
[1758151581411,0.76588587,116770.0,116760.0,0.35964967]
[1758151581688,0.77858952,116770.0,116760.0,0.35964967]
[1758151583350,1.20385919,116770.0,116760.0,0.35960967]
[1758151583549,1.11858952,116770.0,116760.0,0.35960967]
[1758151583953,1.11858952,116770.0,116760.0,0.35950967]
[1758151584802,0.51129153,116760.0,116750.0,0.0001]
[1758151585008,1.54050955,116760.0,116750.0,0.35960967]
[1758151585224,0.7244612,116760.0,116750.0,0.08536967]
[1758151585621,1.65377922,116760.0,116750.0,0.08536967]
[1758151586201,0.63929153,116760.0,116750.0,0.08536967]
[1758151586436,1.10390054,116760.0,116750.0,0.08536967]
[1758151587367,1.10390054,116760.0,116750.0,0.08836967]
[1758151587787,1.10390054,116760.0,116750.0,0.08536967]
[1758151587995,1.10390054,116760.0,116750.0,0.08736967]
[1758151589234,1.10390054,116760.0,116750.0,0.08726967]
[1758151594047,1.12237654,116760.0,116750.0,0.08726967]
[1758151595850,1.33688245,116760.0,116750.0,0.08726967]
[1758151596264,1.34285881,116760.0,116750.0,0.08726967]
[1758151596502,0.64526789,116760.0,116750.0,0.08726967]
[1758151596708,1.34285881,116760.0,116750.0,0.08726967]
[1758151600312,1.34286213,116760.0,116750.0,0.08726967]
[1758151601898,1.4281318,116760.0,116750.0,0.08726967]
[1758151603103,1.34286213,116760.0,116750.0,0.08726967]
[1758151605108,0.64527121,116760.0,116750.0,0.08726967]
[1758151605341,1.35887004,116760.0,116750.0,0.08726967]
[1758151608045,1.7378174,116760.0,116750.0,0.002]
[1758151608250,1.82308707,116760.0,116750.0,0.002]
[1758151609245,0.17132088,116740.0,116730.0,0.27412]
[1758151609452,0.95375148,116740.0,116730.0,0.08526967]
[1758151610019,0.25616056,116740.0,116730.0,0.25660523]
[1758151610232,0.43363514,116740.0,116730.0,0.25660523]
[1758151610444,0.43373514,116740.0,116730.0,0.25674628]
[1758151610654,0.60505602,116740.0,116730.0,0.25674628]
[1758151611069,0.43373514,116740.0,116730.0,0.25674628]
[1758151611291,0.60505602,116740.0,116730.0,0.25674628]
[1758151611473,0.62109339,116740.0,116730.0,0.25674628]
[1758151611699,0.62109339,116740.0,116730.0,0.25774628]
[1758151611915,0.44977251,116740.0,116730.0,0.25774628]
[1758151612660,0.62109339,116740.0,116730.0,0.25774628]
[1758151612850,0.44977251,116740.0,116730.0,0.25774628]
[1758151613614,0.27229793,116740.0,116730.0,0.25774628]
[1758151613809,0.62109339,116740.0,116730.0,0.25774628]
[1758151616632,0.96988885,116740.0,116730.0,0.08641072]
[1758151617478,0.96988885,116740.0,116730.0,0.25774628]
[1758151620014,0.62109339,116740.0,116730.0,0.25774628]
[1758151620301,0.27229793,116740.0,116730.0,0.25774628]
[1758151620473,0.10097705,116740.0,116730.0,0.25774628]
[1758151620724,0.44977251,116740.0,116730.0,0.25774628]
[1758151621439,0.62109339,116740.0,116730.0,0.25774628]
[1758151622894,0.62109339,116740.0,116730.0,0.53174628]
[1758151623408,0.60505602,116740.0,116730.0,0.53174628]
[1758151625384,0.08497872,116740.0,116730.0,0.53174628]
[1758151625589,0.43377418,116740.0,116730.0,0.53174628]
[1758151625803,0.60509506,116740.0,116730.0,0.53174628]
[1758151628011,0.95389052,116740.0,116730.0,0.36041072]
[1758151628226,0.95389052,116740.0,116730.0,0.08641072]
[1758151628433,0.95389052,116740.0,116730.0,0.36037072]
[1758151629340,1.06663786,116740.0,116730.0,0.36037072]
[1758151629524,1.40663786,116740.0,116730.0,0.36037072]
[1758151630257,0.70904694,116740.0,116730.0,0.08641072]
[1758151630460,1.68059786,116740.0,116730.0,0.36037072]
[1758151630860,1.61785052,116740.0,116730.0,0.36037072]
[1758151631601,0.9202596,116740.0,116730.0,0.36037072]
[1758151631811,1.61785052,116740.0,116730.0,0.36037072]
[1758151632018,1.34389052,116740.0,116730.0,0.00114105]
[1758151632236,1.34389052,116740.0,116730.0,0.27506105]
[1758151633109,1.343893,116740.0,116730.0,0.27506105]
[1758151633386,1.3378718,116740.0,116730.0,0.00114105]
[1758151633604,1.3378718,116740.0,116730.0,0.27506105]
[1758151633852,0.72555055,116740.0,116730.0,0.27506105]
[1758151634069,1.42314147,116740.0,116730.0,0.27506105]
[1758151635197,0.64028088,116740.0,116730.0,0.27506105]
[1758151635412,1.3378718,116740.0,116730.0,0.27506105]
[1758151636715,1.68666726,116740.0,116730.0,0.00114105]
[1758151637205,1.71681916,116740.0,116730.0,0.00114105]
[1758151637446,1.71681916,116740.0,116730.0,1.05e-06]
[1758151637664,1.80208883,116740.0,116730.0,1.05e-06]
[1758151638548,2.84847521,116740.0,116730.0,1.05e-06]
[1758151638795,1.80208883,116740.0,116730.0,1.05e-06]
[1758151639035,1.80208883,116740.0,116710.0,0.0296]
[1758151639036,0.56135023,116720.0,116710.0,0.0296]
[1758151639255,0.05,116710.0,116700.0,0.6428596]
[1758151639475,0.05,116710.0,116700.0,0.72825006]
[1758151639476,0.40091546,116710.0,116700.0,0.72825006]
[1758151639659,0.60016038,116710.0,116700.0,0.72825006]
[1758151640228,0.60016038,116710.0,116700.0,0.32825006]
[1758151640866,0.60016038,116710.0,116700.0,0.72825006]
[1758151641098,0.60126038,116710.0,116700.0,0.55687046]
[1758151641346,0.60126038,116710.0,116700.0,0.72825006]
[1758151642125,0.61343587,116710.0,116700.0,0.72825006]
[1758151642349,0.61343587,116710.0,116700.0,0.75927046]
[1758151642564,0.25246492,116710.0,116700.0,0.75927046]
[1758151642799,0.60126038,116710.0,116700.0,0.93065006]
[1758151644446,0.60126038,116710.0,116700.0,0.75927046]
[1758151645420,0.25246492,116710.0,116700.0,0.75927046]
[1758151645647,0.60126038,116710.0,116700.0,0.93065006]
[1758151646393,0.60126038,116710.0,116700.0,0.75927046]
[1758151649542,0.25246492,116710.0,116700.0,0.35927046]
[1758151649765,0.60126038,116710.0,116700.0,0.35927046]
[1758151650116,0.60126038,116710.0,116700.0,0.75927046]
[1758151650541,0.65126038,116710.0,116700.0,0.35923046]
[1758151651031,1.08532551,116710.0,116700.0,0.08539046]
[1758151651242,1.08532551,116710.0,116700.0,0.35923046]
[1758151651243,0.73653005,116710.0,116700.0,0.35923046]
[1758151653752,0.73653005,116710.0,116700.0,0.08539046]
[1758151653960,0.73653005,116710.0,116700.0,0.35923046]
[1758151657544,1.01037005,116710.0,116700.0,0.35923046]
[1758151657677,0.66157459,116710.0,116700.0,0.35923046]
[1758151657877,1.12701531,116710.0,116700.0,0.35923046]
[1758151659370,0.38773459,116710.0,116700.0,0.35923046]
[1758151659583,0.30246492,116710.0,116700.0,0.35923046]
[1758151659794,0.76790564,116710.0,116700.0,0.35923046]
[1758151660052,0.30246492,116710.0,116700.0,0.35923046]
[1758151660244,0.76790564,116710.0,116700.0,0.35923046]
[1758151660489,0.85317531,116710.0,116700.0,0.35923046]
[1758151664039,0.38773459,116710.0,116700.0,0.35923046]
[1758151664238,0.85317531,116710.0,116700.0,0.08539046]
[1758151664446,0.85317531,116710.0,116700.0,0.35919046]
[1758151665884,0.38773459,116710.0,116700.0,0.35919046]
[1758151666112,0.85317531,116710.0,116700.0,0.35919046]
[1758151671884,0.85317531,116710.0,116700.0,0.35915046]
[1758151674785,0.38773459,116710.0,116700.0,0.35915046]
[1758151675007,0.27458492,116710.0,116700.0,0.99789078]
[1758151675217,0.10322,116710.0,116700.0,0.99789078]
[1758151675418,0.27246492,116710.0,116700.0,0.99789078]
[1758151676015,0.27443492,116710.0,116700.0,0.99789078]
[1758151676581,0.27443492,116710.0,116700.0,0.53245006]
[1758151676789,0.0511,116710.0,116700.0,0.53245006]
[1758151677390,0.0511,116710.0,116700.0,0.99789078]
[1758151677603,0.0511,116710.0,116700.0,0.53245006]
[1758151677903,0.0011,116710.0,116700.0,1.00566078]
[1758151678470,0.0011,116710.0,116700.0,0.54022006]
[1758151678709,0.0011,116710.0,116700.0,1.00566078]
[1758151679304,0.0011,116710.0,116700.0,0.54022006]
[1758151679536,0.0011,116710.0,116700.0,0.99789078]
[1758151679537,0.0511,116710.0,116700.0,0.99789078]
[1758151679728,0.22452492,116710.0,116700.0,0.99789078]
[1758151679864,0.22452492,116710.0,116700.0,0.53245006]
[1758151680089,0.05316,116710.0,116700.0,0.53245006]
[1758151680464,0.22452492,116710.0,116700.0,0.53245006]
[1758151680689,0.24885492,116710.0,116700.0,0.53245006]
[1758151680909,0.07749,116710.0,116700.0,0.53245006]
[1758151681229,0.24885492,116710.0,116700.0,0.93245006]
[1758151681622,0.24885492,116710.0,116700.0,0.93237006]
[1758151682025,0.25203492,116710.0,116700.0,0.75907046]